fUST/lending_fUST_20241002
["ID","MTS","AMOUNT","RATE_DAILY","PERIOD"]
[339702648,1727877043193,-500.0,0.00013698,2]
[339702649,1727877043203,-500.0,0.00013698,2]
[339702650,1727877043212,-500.0,0.00013698,2]
[339702651,1727877043222,-500.0,0.00013698,2]
[339702652,1727877043240,-500.0,0.00013698,2]
[339702653,1727877043250,-500.0,0.00013698,2]
[339702655,1727877043261,-1110.98,0.00013698,2]
[339702657,1727877043270,-500.0,0.00013698,2]
[339702658,1727877043280,-926.51,0.00013698,2]
[339702659,1727877043290,-345.56063407,0.00013698,2]
[339702660,1727877043302,-1002.38,0.00013698,2]
[339702661,1727877043312,-503.5964582,0.00013698,2]
[339702662,1727877043321,-500.0,0.00013698,2]
[339702663,1727877043332,-500.0,0.00013698,2]
[339702664,1727877043341,-683.11,0.00013698,2]
[339702665,1727877043350,-625.35,0.00013698,2]
[339702666,1727877043359,-500.0,0.00013698,2]
[339702668,1727877043369,-500.0,0.00013698,2]
[339702669,1727877043378,-500.0,0.00013698,2]
[339702671,1727877043387,-500.0,0.00013698,2]
[339702673,1727877043397,-500.0,0.00013698,2]
[339702674,1727877043407,-500.0,0.00013698,2]
[339702675,1727877043417,-1103.42,0.00013698,2]
[339702676,1727877043427,-500.0,0.00013698,2]
[339702677,1727877043437,-500.0,0.00013698,2]
[339702678,1727877043448,-500.0,0.00013698,2]
[339702679,1727877043458,-500.0,0.00013698,2]
[339702680,1727877043468,-151.0,0.00013698,2]
[339702681,1727877043482,-500.0,0.00013698,2]
[339702682,1727877043492,-523.57,0.00013698,2]
[339702683,1727877043501,-500.0,0.00013698,2]
[339702684,1727877043511,-500.0,0.00013698,2]
[339702685,1727877043521,-500.0,0.00013698,2]
[339702686,1727877043530,-1048.25,0.00013698,2]
[339702687,1727877043539,-500.0,0.00013698,2]
[339702688,1727877043549,-531.11475407,0.00013698,2]
[339702689,1727877043559,-500.0,0.00013698,2]
[339702690,1727877043568,-500.0,0.00013698,2]
[339702691,1727877043578,-500.0,0.00013698,2]
[339702692,1727877043588,-151.0,0.00013698,2]
[339702693,1727877043597,-151.0,0.00013698,2]
[339702694,1727877043607,-500.0,0.00013698,2]
[339702695,1727877043617,-500.0,0.00013698,2]
[339702696,1727877043627,-151.0,0.00013698,2]
[339702697,1727877043637,-500.0,0.00013698,2]
[339702698,1727877043647,-151.0,0.00013698,2]
[339702699,1727877043657,-189.773612,0.00013698,2]
[339702700,1727877043666,-500.0,0.00013698,2]
[339702701,1727877043676,-500.0,0.00013698,2]
[339702702,1727877043686,-500.0,0.00013698,2]
[339702703,1727877043696,-798.69,0.00013698,2]
[339702704,1727877043706,-500.0,0.00013698,2]
[339702705,1727877043715,-5.722128,0.00013698,2]
[339702707,1727877044069,-494.277872,0.00013698,2]
[339702708,1727877044080,-500.0,0.00013698,2]
[339702709,1727877044091,-500.0,0.00013698,2]
[339702710,1727877044101,-715.27,0.00013698,2]
[339702711,1727877044111,-500.0,0.00013698,2]
[339702712,1727877044122,-500.0,0.00013698,2]
[339702713,1727877044132,-500.0,0.00013698,2]
[339702714,1727877044142,-845.0,0.00013698,2]
[339702715,1727877044152,-500.0,0.00013698,2]
[339702716,1727877044162,-576.9,0.00013698,2]
[339702717,1727877044172,-500.0,0.00013698,2]
[339702718,1727877044181,-500.0,0.00013698,2]
[339702719,1727877044190,-500.0,0.00013698,2]
[339702720,1727877044200,-500.0,0.00013698,2]
[339702721,1727877044210,-500.0,0.00013698,2]
[339702722,1727877044219,-500.0,0.00013698,2]
[339702723,1727877044230,-500.0,0.00013698,2]
[339702724,1727877044240,-500.0,0.00013698,2]
[339702725,1727877044250,-569.54,0.00013698,2]
[339702726,1727877044260,-500.0,0.00013698,2]
[339702727,1727877044270,-500.0,0.00013698,2]
[339702728,1727877044280,-151.0,0.00013698,2]
[339702729,1727877044290,-168.617411,0.00013698,2]
[339702730,1727877044300,-448.45697488,0.00013698,2]
[339702731,1727877044717,-500.0,0.00013673,2]
[339702732,1727877044730,-110.23170938,0.00013698,2]
[339702733,1727877044739,-500.0,0.00013698,2]
[339702734,1727877044749,-500.0,0.00013698,2]
[339702735,1727877044758,-253.45599813,0.00013698,2]
[339702736,1727877044790,-246.54400187,0.00013698,2]
[339702737,1727877044800,-462.73071945,0.00013698,2]
[339702750,1727877447658,250.0,0.00012605,2]
[339702751,1727877491089,160.453282,0.00012605,2]
[339702752,1727877491355,160.453282,0.00012621,2]
[339702753,1727877491696,160.453282,0.00012636,2]
[339702754,1727877491807,160.453282,0.00012652,2]
[339702755,1727877492051,160.453282,0.00012668,2]
[339702756,1727877539478,166.6666749,0.00012721,2]
[339702776,1727877727933,215.7306065,0.00012626,2]
[339702777,1727877776438,500.0,0.00012721,2]
[339702778,1727877778819,500.0,0.00012721,2]
[339702779,1727877780067,500.0,0.00012721,2]
[339702780,1727877780578,500.0,0.00012721,2]
[339702781,1727877780989,500.0,0.00012721,2]
[339702782,1727877782431,500.0,0.00012721,2]
[339702783,1727877783133,500.0,0.00012721,2]
[339702784,1727877783846,500.0,0.00012721,2]
[339702785,1727877877461,500.0,0.000125,2]
[339702786,1727877882021,500.0,0.000125,2]
[339702787,1727877945155,-1046.87136,0.00013498,2]
[339702788,1727877954102,-945.97943299,0.00013498,2]
[339702789,1727878029509,-1065.69594,0.00013509,2]
[339702790,1727878036105,-947.91898411,0.00013509,2]
[339702791,1727878037416,-991.919556,0.00013509,2]
[339702792,1727878049115,-2371.70969876,0.00013509,2]
[339702793,1727878049135,-1000.0,0.00013539,2]
[339702794,1727878049156,-300.0,0.0001356,2]
[339702795,1727878049177,-236.93808987,0.0001356,2]
[339702836,1727878232630,-399.91990201,0.00013498,2]
[339702838,1727878232643,-1797.04712731,0.00013498,2]
[339702840,1727878232654,-257.23883641,0.00013509,2]
[339702842,1727878232664,-300.0,0.0001356,2]
[339702844,1727878232674,-300.0,0.0001356,2]
[339702846,1727878232683,-22253.56265728,0.00013561,2]
[339702850,1727878232706,-330.31460338,0.00013561,2]
[339702856,1727878232759,-1077.1781694,0.00013561,2]
[339703283,1727878238543,-1346.5,0.00013561,2]
[339703284,1727878238653,-614.67,0.00013561,2]
[339703285,1727878238665,-662.732602,0.00013561,2]
[339703286,1727878238688,-5143.6703057,0.00013561,2]
[339703288,1727878238698,-557.13915567,0.00013598,2]
[339703289,1727878238707,-500.0,0.00013673,2]
[339703290,1727878238717,-500.0,0.00013673,2]
[339703291,1727878238727,-500.0,0.00013673,2]
[339703292,1727878238736,-612.61830395,0.00013673,2]
[339703293,1727878238745,-176.147,0.00013673,2]
[339703294,1727878238755,-3000.0,0.00013688,2]
[339703295,1727878238765,-3063.20124911,0.00013688,2]
[339703313,1727878240746,-2550.02,0.00013688,2]
[339703331,1727878243823,-23885.59274362,0.00013688,2]
[339703333,1727878244011,-175218.36427927,0.00013688,2]
[339703334,1727878244021,-132265.34906576,0.00013688,2]
[339703342,1727878246540,-500.0,0.00013673,2]
[339703344,1727878246550,-10042.57912324,0.00013688,2]
[339703345,1727878246560,-18610.6525701,0.00013689,2]
[339703346,1727878246569,-12937.0843808,0.00013689,2]
[339703347,1727878246579,-900.0,0.0001369,2]
[339703348,1727878246587,-1218.0,0.00013696,2]
[339703349,1727878246601,-1434.61116098,0.00013697,2]
[339703350,1727878246610,-17042.65001148,0.00013698,2]
[339703351,1727878246620,-11962.50297731,0.00013698,2]
[339703352,1727878246629,-225.21203693,0.00013698,2]
[339703353,1727878246639,-500.0,0.00013698,2]
[339703354,1727878246649,-500.0,0.00013698,2]
[339703355,1727878246659,-500.0,0.00013698,2]
[339703356,1727878246670,-603.89825986,0.00013698,2]
[339703357,1727878246680,-500.0,0.00013698,2]
[339703358,1727878246689,-500.0,0.00013698,2]
[339703359,1727878246699,-500.0,0.00013698,2]
[339703360,1727878246708,-127.71680141,0.00013698,2]
[339703361,1727878246729,-372.28319859,0.00013698,2]
[339703362,1727878246739,-500.0,0.00013698,2]
[339703363,1727878246748,-500.0,0.00013698,2]
[339703364,1727878246757,-606.63894273,0.00013698,2]
[339703365,1727878246767,-500.0,0.00013698,2]
[339703366,1727878246777,-500.0,0.00013698,2]
[339703367,1727878246787,-500.0,0.00013698,2]
[339703368,1727878246797,-500.0,0.00013698,2]
[339703369,1727878246806,-2185.34,0.00013698,2]
[339703370,1727878246816,-500.0,0.00013698,2]
[339703371,1727878246825,-500.0,0.00013698,2]
[339703372,1727878246834,-500.0,0.00013698,2]
[339703373,1727878246849,-500.0,0.00013698,2]
[339703374,1727878246859,-500.0,0.00013698,2]
[339703375,1727878246869,-151.0,0.00013698,2]
[339703376,1727878246878,-151.0,0.00013698,2]
[339703377,1727878246888,-500.0,0.00013698,2]
[339703378,1727878246897,-347.3655589,0.00013698,2]
[339703379,1727878290166,202.2897021,0.00012705,2]
[339703381,1727878381496,599.7338392,0.00012698,2]
[339703382,1727878504553,190.3375209,0.00012049,2]
[339703383,1727878537374,1406.7660155,0.00012684,2]
[339703385,1727878683379,250.0,0.00012725,2]
[339703386,1727878683789,250.0,0.0001276,2]
[339703387,1727878683843,250.0,0.00012795,2]
[339703388,1727878684105,250.0,0.0001283,2]
[339703389,1727878684348,250.0,0.00012865,2]
[339703390,1727878684620,250.0,0.000129,2]
[339703391,1727878684861,250.0,0.00012934,2]
[339703392,1727878685075,250.0,0.00012969,2]
[339703393,1727878703228,10916.2092309,0.00012418,2]
[339703394,1727879139108,-250.0,0.00012347,2]
[339703395,1727879139327,-300.0,0.00012417,2]
[339703396,1727879139351,-300.0,0.00012417,2]
[339703397,1727879139378,-1094.72510706,0.00012418,2]
[339703398,1727879157095,-2003.134536,0.00012418,2]
[339703399,1727879241113,-860.38609089,0.000124,2]
[339703400,1727879241142,-157.894736,0.00012402,2]
[339703401,1727879241167,-300.0,0.00012417,2]
[339703402,1727879241198,-300.0,0.00012417,2]
[339703403,1727879241223,-407.94736711,0.00012418,2]
[339703404,1727879248115,-1939.7743956,0.00012418,2]
[339703405,1727879254148,-2230.113567,0.00012418,2]
[339703407,1727879349550,-6308.0957963,0.00011967,2]
[339703408,1727879357117,-157.894736,0.00012438,2]
[339703409,1727879357140,-157.894736,0.00012473,2]
[339703410,1727879357161,-300.0,0.00012499,2]
[339703411,1727879357183,-300.0,0.00012499,2]
[339703412,1727879357206,-500.0,0.000125,2]
[339703413,1727879357229,-500.0,0.000125,2]
[339703414,1727879357252,-500.0,0.000125,2]
[339703415,1727879357276,-487.15731388,0.000125,2]
[339703416,1727879357299,-157.894736,0.00012509,2]
[339703417,1727879357321,-157.894736,0.00012545,2]
[339703418,1727879359121,-157.894736,0.00012581,2]
[339703419,1727879359146,-157.894736,0.00012617,2]
[339703420,1727879359170,-157.894736,0.00012653,2]
[339703421,1727879359193,-157.894736,0.00012689,2]
[339703422,1727879359216,-157.894736,0.00012725,2]
[339703423,1727879359239,-157.894736,0.00012761,2]
[339703424,1727879359262,-157.894736,0.00012796,2]
[339703490,1727879437733,-157.894736,0.00012832,2]
[339703492,1727879437744,-157.894736,0.00012868,2]
[339703493,1727879437754,-157.894736,0.00012904,2]
[339703495,1727879437764,-157.894736,0.0001294,2]
[339703497,1727879437774,-153.0,0.00012941,2]
[339703498,1727879437784,-306.0,0.00012941,2]
[339703499,1727879437793,-235.36821372,0.00012941,2]
[339703500,1727879438073,-70.63178628,0.00012941,2]
[339703501,1727879438083,-157.894736,0.00012976,2]
[339703502,1727879438092,-157.894736,0.00013012,2]
[339703503,1727879438102,-306.0,0.00013041,2]
[339703504,1727879438112,-157.894736,0.00013048,2]
[339703505,1727879438121,-300.0,0.00013199,2]
[339703506,1727879438131,-300.0,0.00013199,2]
[339703507,1727879438140,-306.0,0.000132,2]
[339703508,1727879438151,-153.0,0.000132,2]
[339703509,1727879438160,-153.0,0.000132,2]
[339703510,1727879438169,-153.0,0.000132,2]
[339703511,1727879438179,-153.0,0.000132,2]
[339703512,1727879438188,-153.0,0.000132,2]
[339703513,1727879438197,-153.0,0.000133,2]
[339703514,1727879438207,-153.0,0.000133,2]
[339703515,1727879438216,-153.0,0.000133,2]
[339703516,1727879438226,-306.0,0.000133,2]
[339703517,1727879438236,-306.0,0.000134,2]
[339703518,1727879438245,-2023.95687984,0.00013523,2]
[339703519,1727879438254,-501.42524004,0.00013598,2]
[339703520,1727879438264,-153.0,0.000136,2]
[339703521,1727879438273,-15975.67829295,0.000136,2]
[339703522,1727879438282,-162.47455229,0.0001361,2]
[339703523,1727879438293,-47382.53746591,0.0001361,2]
[339703524,1727879438302,-7067.94404438,0.00013623,2]
[339703525,1727879438312,-17720.1693278,0.00013668,2]
[339703526,1727879438321,-500.0,0.00013673,2]
[339703527,1727879438331,-500.0,0.00013673,2]
[339703528,1727879438340,-500.0,0.00013673,2]
[339703529,1727879438349,-500.0,0.00013673,2]
[339703530,1727879438358,-500.0,0.00013673,2]
[339703531,1727879438368,-500.0,0.00013673,2]
[339703532,1727879438378,-17720.1693278,0.00013678,2]
[339703533,1727879438387,-45784.9797039,0.00013678,2]
[339703534,1727879438396,-35440.3386556,0.00013678,2]
[339703535,1727879438406,-30523.3198026,0.00013688,2]
[339703536,1727879438416,-17720.1693278,0.00013688,2]
[339703537,1727879438426,-71721.7212846,0.00013688,2]
[339703538,1727879438436,-25094.74561422,0.00013688,2]
[339703539,1727879438445,-151.0,0.00013688,2]
[339703540,1727879438455,-151.0,0.00013688,2]
[339703541,1727879438464,-151.0,0.00013688,2]
[339703542,1727879438473,-151.0,0.00013688,2]
[339703543,1727879438482,-338.406082,0.00013688,2]
[339703544,1727879438492,-338.406082,0.00013688,2]
[339703545,1727879438501,-338.406082,0.00013688,2]
[339703546,1727879438510,-338.406082,0.00013688,2]
[339703547,1727879438519,-440.418116,0.00013688,2]
[339703548,1727879438528,-440.418116,0.00013688,2]
[339703549,1727879438538,-27482.79500192,0.00013688,2]
[339703652,1727880336104,-300.0,0.00012114,2]
[339703653,1727880336127,-300.0,0.00012114,2]
[339703654,1727880336151,-1275.92557079,0.00012115,2]
[339703655,1727880338099,-2069.28046682,0.00012115,2]
[339703656,1727880349329,41711.5971813,0.0001,2]
[339703657,1727880437108,-300.0,0.00011899,2]
[339703658,1727880437135,-300.0,0.00011899,2]
[339703659,1727880437158,-1321.25344356,0.000119,2]
[339703660,1727880444168,-2060.7442794,0.000119,2]
[339703661,1727880449406,-4612.90108462,0.000119,2]
[339703663,1727880545163,-300.0,0.00011899,2]
[339703664,1727880545187,-300.0,0.00011899,2]
[339703665,1727880545209,-15462.75769292,0.000119,2]
[339703666,1727880548222,-165.008698,0.00012408,2]
[339703667,1727880548247,-165.008698,0.00012442,2]
[339703668,1727880548273,-165.008698,0.00012476,2]
[339703669,1727880548298,-165.008698,0.0001251,2]
[339703670,1727880548323,-165.008698,0.00012544,2]
[339703671,1727880548347,-165.008698,0.00012578,2]
[339703672,1727880548370,-165.008698,0.00012612,2]
[339703673,1727880548394,-165.008698,0.00012646,2]
[339703674,1727880548416,-165.008698,0.0001268,2]
[339703675,1727880548441,-165.008698,0.00012714,2]
[339703676,1727880548464,-165.008698,0.00012748,2]
[339703677,1727880548487,-165.008698,0.00012782,2]
[339703678,1727880548509,-165.008698,0.00012816,2]
[339703719,1727880637997,-306.0,0.00012841,2]
[339703720,1727880638007,-165.008698,0.0001285,2]
[339703721,1727880638019,-165.008698,0.00012884,2]
[339703722,1727880638028,-165.008698,0.00012918,2]
[339703723,1727880638038,-153.0,0.00012941,2]
[339703724,1727880638048,-165.008698,0.00012953,2]
[339703725,1727880638059,-66.26172654,0.00012987,2]
[339703726,1727880638070,-98.74697146,0.00012987,2]
[339703727,1727880638081,-1000.0,0.00013,6]
[339703728,1727880638091,-165.008698,0.00013021,2]
[339703729,1727880638102,-42.56693549,0.00013055,2]
[339703730,1727880638119,-122.44176251,0.00013055,2]
[339703731,1727880638129,-300.0,0.00013279,2]
[339703732,1727880638139,-300.0,0.00013279,2]
[339703734,1727880638148,-2220.7605509,0.0001328,2]
[339703736,1727880638160,-399.82719863,0.0001328,2]
[339703760,1727880640283,-499.85890053,0.00013399,2]
[339703761,1727880640294,-5781.39742003,0.00013404,2]
[339703762,1727880640304,-2812.22956093,0.00013461,2]
[339703763,1727880640314,-19000.0,0.000135,2]
[339703764,1727880640323,-160.8946759,0.000135,2]
[339703765,1727880640334,-35278.71478628,0.00013561,2]
[339703766,1727880640344,-10072.1051759,0.0001358,2]
[339703767,1727880640355,-451.28271609,0.00013598,2]
[339703768,1727880640364,-1128.83089503,0.000136,2]
[339703769,1727880640424,-213.47260484,0.000136,2]
[339703773,1727880643280,-208.43617453,0.000136,2]
[339703777,1727880646524,-512.54456496,0.000136,2]
[339703782,1727880992635,-300.0,0.000123,2]
[339703783,1727880992859,-300.0,0.000123,2]
[339703784,1727880992884,-17460.1888517,0.00012301,2]
[339703785,1727881549324,-161.09169,0.00012537,2]
[339703786,1727881549350,-161.09169,0.0001258,2]
[339703787,1727881549378,-161.09169,0.00012624,2]
[339703788,1727881549403,-161.09169,0.00012668,2]
[339703789,1727881549427,-161.09169,0.00012711,2]
[339703790,1727881549454,-161.09169,0.00012755,2]
[339703791,1727881549478,-161.09169,0.00012798,2]
[339703792,1727881549502,-161.09169,0.00012842,2]
[339703793,1727881549525,-161.09169,0.00012885,2]
[339703794,1727881549549,-161.09169,0.00012929,2]
[339703795,1727881549573,-161.09169,0.00012972,2]
[339703796,1727881549596,-161.09169,0.00013016,2]
[339703797,1727881549619,-119.31706706,0.0001306,2]
[339703798,1727881650164,-41.77462294,0.0001306,2]
[339703799,1727881650188,-161.09169,0.00013103,2]
[339703800,1727881650211,-161.09169,0.00013147,2]
[339703801,1727881650235,-161.09169,0.0001319,2]
[339703802,1727881650259,-153.0,0.000132,2]
[339703803,1727881650284,-153.0,0.000132,2]
[339703804,1727881650310,-153.0,0.000132,2]
[339703805,1727881650338,-153.0,0.000132,2]
[339703806,1727881650363,-300.0,0.0001321,2]
[339703807,1727881650386,-300.0,0.0001321,2]
[339703808,1727881650410,-355.412081,0.00013211,2]
[339703867,1727881838082,-175.347,0.000135,2]
[339703868,1727881838093,-162.38816025,0.00013578,2]
[339703869,1727881838103,-162.38816025,0.00013597,2]
[339703871,1727881838113,-514.3182327,0.00013598,2]
[339703873,1727881838123,-2942.84872196,0.000136,2]
[339703875,1727881838132,-300.0,0.00013672,2]
[339703877,1727881838142,-300.0,0.00013672,2]
[339703879,1727881838154,-500.52472714,0.00013673,2]
[339703880,1727881838164,-500.93197883,0.00013673,2]
[339703881,1727881838177,-500.0,0.00013673,2]
[339703882,1727881838188,-200.11539373,0.00013673,2]
[339703883,1727881838198,-500.13534028,0.00013673,2]
[339703884,1727881838207,-500.39400064,0.00013673,2]
[339703885,1727881838217,-500.32495711,0.00013673,2]
[339703886,1727881838227,-500.38104515,0.00013673,2]
[339703887,1727881838237,-502.18164325,0.00013673,2]
[339703889,1727881838248,-500.0,0.00013673,2]
[339703892,1727881838258,-500.0,0.00013673,2]
[339703894,1727881838268,-500.0,0.00013673,2]
[339703896,1727881838279,-177.647,0.00013673,2]
[339703898,1727881838289,-500.0,0.00013673,2]
[339703900,1727881838298,-500.0,0.00013673,2]
[339703902,1727881838309,-161.21640876,0.00013673,2]
[339703904,1727881838318,-500.0,0.00013673,2]
[339703906,1727881838327,-501.72137369,0.00013673,2]
[339703907,1727881838337,-500.61734907,0.00013673,2]
[339703909,1727881838346,-158.70560493,0.00013673,2]
[339703911,1727881838355,-500.0,0.00013673,2]
[339703913,1727881838367,-500.0,0.00013673,2]
[339703916,1727881838378,-500.0,0.00013673,2]
[339703918,1727881838387,-500.0,0.00013673,2]
[339703920,1727881838397,-12803.0806144,0.00013678,2]
[339703922,1727881838406,-1863.3025132,0.00013678,2]
[339703924,1727881838418,-51212.3224577,0.00013678,2]
[339703926,1727881838429,-7453.2100528,0.00013678,2]
[339703928,1727881838439,-13562.94546382,0.00013687,2]
[339703930,1727881838448,-12803.0806144,0.00013687,2]
[339703932,1727881838458,-1863.3025132,0.00013687,2]
[339703934,1727881838467,-3000.0,0.00013687,2]
[339703936,1727881838477,-3000.0,0.00013687,2]
[339703938,1727881838486,-3000.0,0.00013687,2]
[339703940,1727881838495,-3000.0,0.00013687,2]
[339703942,1727881838505,-3000.0,0.00013687,2]
[339703944,1727881838514,-750.0,0.00013687,2]
[339703946,1727881838523,-42663.66641194,0.00013688,2]
[339703948,1727881838533,-151.0,0.00013688,2]
[339703950,1727881838543,-181.793557,0.00013688,2]
[339703952,1727881838552,-181.793557,0.00013688,2]
[339703954,1727881838562,-364.357756,0.00013688,2]
[339703956,1727881838573,-364.357756,0.00013688,2]
[339703958,1727881838582,-151.0,0.00013688,2]
[339703960,1727881838592,-256.371111,0.00013688,2]
[339703962,1727881838601,-151.0,0.00013688,2]
[339703964,1727881838610,-256.371111,0.00013688,2]
[339703965,1727881838620,-537.641952,0.00013688,2]
[339703966,1727881838629,-537.641952,0.00013688,2]
[339703968,1727881838638,-151.0,0.00013688,2]
[339703970,1727881838648,-152.476813,0.00013688,2]
[339703971,1727881838657,-151.0,0.00013688,2]
[339703973,1727881838666,-616.93878,0.00013688,2]
[339703975,1727881838677,-151.0,0.00013688,2]
[339703976,1727881838687,-151.0,0.00013688,2]
[339703977,1727881838697,-379.697835,0.00013688,2]
[339703979,1727881838706,-212.12527453,0.00013688,2]
[339703981,1727881838723,-404.81350547,0.00013688,2]
[339703982,1727881838732,-379.697835,0.00013688,2]
[339703983,1727881838742,-151.066525,0.00013688,2]
[339703984,1727881838751,-1493.15501,0.00013688,2]
[339703985,1727881838760,-1493.15501,0.00013688,2]
[339703986,1727881838770,-151.0,0.00013688,2]
[339703987,1727881838782,-151.0,0.00013688,2]
[339703988,1727881838793,-151.0,0.00013688,2]
[339703989,1727881838804,-801.428731,0.00013688,2]
[339703990,1727881838814,-151.0,0.00013688,2]
[339703991,1727881838823,-801.428731,0.00013688,2]
[339703992,1727881838834,-247.516827,0.00013688,2]
[339703993,1727881838843,-447.726684,0.00013688,2]
[339703994,1727881838853,-247.516827,0.00013688,2]
[339703995,1727881838864,-294.559872,0.00013688,2]
[339703996,1727881838874,-294.559872,0.00013688,2]
[339703997,1727881838883,-447.726684,0.00013688,2]
[339703998,1727881838892,-151.0,0.00013688,2]
[339703999,1727881838902,-128030.806144,0.00013688,2]
[339704000,1727881838911,-26086.2351848,0.00013688,2]
[339704001,1727881838922,-308.19342856,0.00013697,2]
[339704002,1727881838932,-10929.06796274,0.00013697,2]
[339704003,1727881838941,-450.0,0.00013698,2]
[339704004,1727881838950,-500.0,0.00013698,2]
[339704005,1727881838960,-482.89297263,0.00013698,2]
[339704006,1727881838970,-510.12003069,0.00013698,2]
[339704007,1727881838979,-500.0,0.00013698,2]
[339704008,1727881838989,-500.0,0.00013698,2]
[339704009,1727881838998,-500.0,0.00013698,2]
[339704010,1727881839009,-500.0,0.00013698,2]
[339704011,1727881839020,-500.0,0.00013698,2]
[339704012,1727881839030,-500.0,0.00013698,2]
[339704013,1727881839041,-500.0,0.00013698,2]
[339704014,1727881839053,-500.0,0.00013698,2]
[339704015,1727881839064,-500.0,0.00013698,2]
[339704016,1727881839075,-224.56102939,0.00013698,2]
[339704017,1727881839084,-500.0,0.00013698,2]
[339704018,1727881839094,-500.0,0.00013698,2]
[339704019,1727881839105,-500.0,0.00013698,2]
[339704020,1727881839114,-500.0,0.00013698,2]
[339704021,1727881839124,-500.0,0.00013698,2]
[339704022,1727881839134,-500.0,0.00013698,2]
[339704023,1727881839143,-500.0,0.00013698,2]
[339704024,1727881839154,-151.0,0.00013698,2]
[339704025,1727881839164,-151.0,0.00013698,2]
[339704026,1727881839174,-500.0,0.00013698,2]
[339704027,1727881839185,-151.0,0.00013698,2]
[339704028,1727881839195,-500.0,0.00013698,2]
[339704029,1727881839204,-500.0,0.00013698,2]
[339704030,1727881839214,-500.0,0.00013698,2]
[339704031,1727881839224,-500.0,0.00013698,2]
[339704032,1727881839234,-609.79596459,0.00013698,2]
[339704033,1727881839244,-500.0,0.00013698,2]
[339704034,1727881839254,-500.0,0.00013698,2]
[339704035,1727881839264,-500.0,0.00013698,2]
[339704036,1727881839274,-500.0,0.00013698,2]
[339704037,1727881839284,-500.0,0.00013698,2]
[339704038,1727881839295,-571.57,0.00013698,2]
[339704039,1727881839305,-500.0,0.00013698,2]
[339704040,1727881839315,-500.0,0.00013698,2]
[339704041,1727881839325,-633.62,0.00013698,2]
[339704042,1727881839335,-838.16,0.00013698,2]
[339704043,1727881839345,-500.0,0.00013698,2]
[339704044,1727881839354,-500.0,0.00013698,2]
[339704045,1727881839522,-500.0,0.00013698,2]
[339704046,1727881839533,-500.0,0.00013698,2]
[339704047,1727881839543,-500.0,0.00013698,2]
[339704048,1727881839554,-839.97,0.00013698,2]
[339704049,1727881839564,-500.0,0.00013698,2]
[339704050,1727881839574,-500.0,0.00013698,2]
[339704051,1727881839586,-500.0,0.00013698,2]
[339704052,1727881839595,-576.78,0.00013698,2]
[339704054,1727881839605,-500.0,0.00013698,2]
[339704055,1727881839614,-500.0,0.00013698,2]
[339704056,1727881839624,-500.0,0.00013698,2]
[339704057,1727881839633,-342.38748727,0.00013698,2]
[339704058,1727881839642,-500.0,0.00013698,2]
[339704059,1727881839652,-500.0,0.00013698,2]
[339704060,1727881839661,-500.0,0.00013698,2]
[339704061,1727881839672,-541.21,0.00013698,2]
[339704062,1727881839682,-500.0,0.00013698,2]
[339704063,1727881839692,-500.0,0.00013698,2]
[339704064,1727881839702,-500.0,0.00013698,2]
[339704065,1727881839712,-739.91,0.00013698,2]